bitfinex/quotes_BTCUSD_20240617
["timestamp","ask_amount","ask_price","bid_price","bid_amount"]
[1718668199455,0.00855,66539.0,66538.0,2.81068553]
[1718668199649,0.00855,66539.0,66538.0,3.37789502]
[1718668199866,0.00855,66539.0,66538.0,2.72020437]
[1718668200084,0.00855,66539.0,66538.0,3.29068553]
[1718668200714,0.00855,66539.0,66538.0,3.27668553]
[1718668201630,0.00855,66539.0,66538.0,3.26268553]
[1718668202197,0.00855,66539.0,66538.0,3.27668553]
[1718668202875,0.00855,66539.0,66538.0,3.29068553]
[1718668203382,0.00855,66539.0,66538.0,3.91252498]
[1718668203590,1e-06,66539.0,66538.0,3.96583578]
[1718668203802,1e-06,66539.0,66538.0,4.23097087]
[1718668204232,1e-06,66539.0,66538.0,4.16366007]
[1718668204437,1e-06,66539.0,66538.0,4.23697299]
[1718668204649,1e-06,66539.0,66538.0,3.79664525]
[1718668204856,1e-06,66539.0,66538.0,3.61194498]
[1718668205064,1e-06,66539.0,66538.0,3.65678871]
[1718668205284,1e-06,66539.0,66538.0,3.96252498]
[1718668205712,1e-06,66539.0,66538.0,3.94852498]
[1718668205864,1e-06,66539.0,66538.0,3.96252498]
[1718668206066,1e-06,66539.0,66538.0,3.94852498]
[1718668206305,1e-06,66539.0,66538.0,3.67726553]
[1718668206516,1e-06,66539.0,66538.0,3.96034843]
[1718668207272,1e-06,66539.0,66538.0,4.00516985]
[1718668207686,1e-06,66539.0,66538.0,3.99116985]
[1718668208092,1e-06,66539.0,66538.0,3.96034843]
[1718668208316,1e-06,66539.0,66538.0,4.00516664]
[1718668210108,0.0235395,66608.0,66578.0,0.01]
[1718668210313,0.450592,66579.0,66578.0,0.01]
[1718668210473,0.450582,66581.0,66580.0,0.0111]
[1718668210673,0.150204,66576.0,66572.0,0.04855974]
[1718668210888,0.150208,66575.0,66572.0,0.04855974]
[1718668211113,0.150208,66575.0,66574.0,0.0111]
[1718668211526,0.300407,66577.0,66572.0,0.03745974]
[1718668211745,0.450646,66571.0,66570.0,0.03745974]
[1718668211989,0.930122,66567.0,66566.0,0.03745974]
[1718668212245,0.930122,66567.0,66556.0,0.03745974]
[1718668212246,0.300485,66559.0,66556.0,0.03745974]
[1718668212504,0.450741,66557.0,66556.0,0.03745974]
[1718668212717,0.150247,66557.0,66556.0,0.03745974]
[1718668212925,0.329234,66563.0,66560.0,0.0111]
[1718668213136,0.1,66566.0,66562.0,0.04855974]
[1718668213805,0.5758,66563.0,66562.0,0.03745974]
[1718668214019,0.5758,66563.0,66562.0,0.04855974]
[1718668214020,0.6758,66563.0,66562.0,0.04855974]
[1718668214223,0.6798,66563.0,66562.0,0.04855974]
[1718668214642,0.379333,66563.0,66562.0,0.04855974]
[1718668214835,0.375333,66563.0,66562.0,0.04855974]
[1718668215040,0.375333,66563.0,66562.0,0.03745974]
[1718668215362,0.6758,66563.0,66562.0,0.03745974]
[1718668215576,0.6778,66563.0,66562.0,0.03745974]
[1718668216119,0.377333,66563.0,66562.0,0.03745974]
[1718668216531,0.381333,66563.0,66562.0,0.04855974]
[1718668217181,0.6818,66563.0,66562.0,0.03745974]
[1718668217398,0.1093,66557.0,66556.0,0.03745974]
[1718668217605,0.1093,66557.0,66556.0,0.04855974]
[1718668217606,0.560041,66557.0,66556.0,0.04855974]
[1718668218038,0.560041,66557.0,66556.0,0.03745974]
[1718668218211,0.560041,66557.0,66556.0,0.04855974]
[1718668218849,0.560041,66557.0,66556.0,0.05355974]
[1718668219693,0.560041,66557.0,66556.0,0.05245974]
[1718668219937,0.560041,66557.0,66556.0,0.04245974]
[1718668220586,0.560041,66557.0,66556.0,0.05355974]
[1718668220806,0.860535,66557.0,66556.0,0.04245974]
[1718668221030,0.92904951,66557.0,66556.0,0.04245974]
[1718668221218,0.92904951,66557.0,66556.0,0.04645974]
[1718668221219,1.14985903,66557.0,66556.0,0.04645974]
[1718668222138,1.24985903,66557.0,66556.0,0.009]
[1718668222347,1.55035303,66557.0,66556.0,0.009]
[1718668222559,1.66061794,66557.0,66556.0,0.009]
[1718668222778,1.55035303,66557.0,66556.0,0.009]
[1718668224961,1.55024358,66557.0,66556.0,0.009]
[1718668225161,0.751335,66548.0,66547.0,0.03745974]
[1718668225407,0.825535,66548.0,66547.0,0.03745974]
[1718668225613,0.854735,66548.0,66547.0,0.03745974]
[1718668226275,0.855735,66548.0,66547.0,0.04545974]
[1718668226842,1.157269,66548.0,66547.0,0.017]
[1718668227007,1.157269,66548.0,66547.0,0.05445974]
[1718668227607,1.157269,66548.0,66547.0,0.017]
[1718668228038,1.157269,66548.0,66547.0,0.05445974]
[1718668228194,1.157269,66548.0,66547.0,0.017]
[1718668229074,1.157269,66548.0,66547.0,0.05445974]
[1718668230433,1.157269,66548.0,66547.0,0.017]
[1718668231047,1.257269,66548.0,66547.0,0.017]
[1718668231249,1.257269,66548.0,66547.0,0.05445974]
[1718668232533,1.228069,66548.0,66547.0,0.05445974]
[1718668236418,1.077802,66548.0,66547.0,0.05445974]
[1718668236528,1.228069,66548.0,66547.0,0.05445974]
[1718668239256,0.927535,66548.0,66547.0,0.06555974]
[1718668239482,1.0660874,66548.0,66547.0,0.06555974]
[1718668239694,0.999135,66548.0,66547.0,0.06555974]
[1718668239905,1.299669,66548.0,66547.0,0.05445974]
[1718668240236,1.49335113,66548.0,66547.0,0.05445974]
[1718668240448,1.56082987,66548.0,66547.0,0.06555974]
[1718668240642,1.56082987,66548.0,66547.0,0.05445974]
[1718668241503,1.49335113,66548.0,66547.0,0.05445974]
[1718668241710,1.56124772,66548.0,66547.0,0.05445974]
[1718668242048,3.44695716,66548.0,66547.0,0.017]
[1718668242217,3.44695716,66548.0,66538.0,0.000935]
[1718668242218,1.156312,66539.0,66538.0,0.000935]
[1718668242348,1.72216913,66539.0,66538.0,0.000935]
[1718668242543,1.89006572,66539.0,66538.0,0.000935]
[1718668244784,1.89106572,66539.0,66538.0,0.000935]
[1718668245101,1.89006572,66539.0,66538.0,0.000935]
[1718668245301,1.90006572,66539.0,66538.0,0.001935]
[1718668245486,2.01766572,66539.0,66538.0,0.002935]
[1718668245901,2.01847383,66539.0,66538.0,0.002935]
[1718668246475,1.71789883,66539.0,66538.0,0.002935]
[1718668246677,1.64919413,66539.0,66538.0,0.002935]
[1718668246917,1.61999413,66539.0,66538.0,0.002935]
[1718668247096,1.31941913,66539.0,66538.0,0.002935]
[1718668247294,1.426312,66539.0,66538.0,0.002935]
[1718668247499,1.62153956,66539.0,66538.0,0.002935]
[1718668248181,0.94528956,66539.0,66538.0,0.002935]
[1718668248517,1.24586456,66539.0,66538.0,0.014035]
[1718668248837,1.06666456,66539.0,66538.0,0.014035]
[1718668249044,1.06666456,66539.0,66538.0,0.002935]
[1718668249259,1.06666456,66539.0,66538.0,0.05149474]
[1718668249260,0.21522756,66539.0,66538.0,0.05149474]
[1718668249458,0.02,66539.0,66538.0,0.13399474]
[1718668249667,0.02,66539.0,66538.0,0.15450103]
[1718668250155,0.01,66539.0,66538.0,0.15350103]
[1718668251290,0.150281,66542.0,66538.0,0.15250103]
[1718668251411,0.150281,66542.0,66541.0,0.04855974]
[1718668251849,0.150281,66542.0,66541.0,0.06906974]
[1718668252455,0.1,66550.0,66546.0,0.03745974]
[1718668252653,0.1,66550.0,66546.0,0.04855974]
[1718668252654,0.15027,66547.0,66546.0,0.04855974]
[1718668252922,0.25027,66547.0,66546.0,0.04855974]
[1718668253068,0.25027,66547.0,66546.0,0.03745974]
[1718668253069,1.05668681,66547.0,66546.0,0.03745974]
[1718668253622,1.05629612,66547.0,66546.0,0.04855974]
[1718668254736,0.75575712,66547.0,66546.0,0.04855974]
[1718668254904,0.75575712,66547.0,66546.0,0.04955974]
[1718668255653,0.75575712,66547.0,66546.0,0.04855974]
[1718668255867,0.30894812,66547.0,66546.0,0.04855974]
[1718668256067,0.31194812,66547.0,66546.0,0.04855974]
[1718668256517,0.46221712,66547.0,66546.0,0.04855974]
[1718668256723,0.257269,66547.0,66546.0,0.04855974]
[1718668256944,0.007,66547.0,66546.0,0.04855974]
[1718668257319,0.007,66547.0,66546.0,0.06906057]
[1718668258108,0.158119,66547.0,66546.0,0.06906057]
[1718668258652,0.158119,66547.0,66546.0,0.04855974]
[1718668258992,0.155119,66547.0,66546.0,0.04855974]
[1718668259188,0.155119,66547.0,66546.0,0.04955974]
[1718668259189,0.163119,66547.0,66546.0,0.04955974]
[1718668259709,0.155119,66547.0,66546.0,0.04855974]
[1718668259852,0.158119,66547.0,66546.0,0.04855974]
[1718668260892,0.154119,66547.0,66546.0,0.04855974]
[1718668261346,0.163119,66547.0,66546.0,0.04955974]
[1718668261489,0.160119,66547.0,66546.0,0.04955974]
[1718668261872,0.161119,66547.0,66546.0,0.05455974]
[1718668262299,0.160119,66547.0,66546.0,0.04955974]
[1718668262897,0.151119,66547.0,66546.0,0.04855974]
[1718668263221,0.151119,66547.0,66546.0,0.05255974]
[1718668263407,0.151119,66547.0,66546.0,0.04855974]
[1718668264165,0.154119,66547.0,66546.0,0.04855974]
[1718668264569,0.151119,66547.0,66546.0,0.04855974]
[1718668264779,0.451658,66547.0,66546.0,0.04855974]
[1718668264915,0.451658,66547.0,66546.0,0.05455974]
[1718668265463,0.222719,66547.0,66546.0,0.05455974]
[1718668266009,0.07245,66547.0,66546.0,0.05455974]
[1718668266431,0.222719,66547.0,66546.0,0.05455974]
[1718668266642,0.222719,66547.0,66546.0,0.07503286]
[1718668266843,0.222719,66547.0,66546.0,0.05455974]
[1718668267186,0.523258,66547.0,66546.0,0.05455974]
[1718668272830,0.00085,66547.0,66546.0,0.13255974]
[1718668273052,0.00085,66547.0,66546.0,0.54075962]
[1718668273253,0.00085,66547.0,66546.0,0.4109653]
[1718668274445,0.00085,66547.0,66546.0,0.4089653]
[1718668274782,0.00085,66547.0,66546.0,0.4139653]
[1718668275607,0.00085,66547.0,66546.0,0.4099653]
[1718668276051,0.00185,66547.0,66546.0,0.4159653]
[1718668276383,0.00085,66547.0,66546.0,0.4049653]
[1718668276592,0.00085,66547.0,66546.0,0.4109653]
[1718668276799,0.00285,66547.0,66546.0,0.4179653]
[1718668278156,0.00285,66547.0,66546.0,0.4279653]
[1718668279224,0.00285,66547.0,66546.0,0.4179653]
[1718668279840,0.675528,66547.0,66546.0,0.07093642]
[1718668280034,0.904697,66547.0,66546.0,0.07093642]
[1718668280266,1.14479948,66547.0,66546.0,0.06155974]
[1718668280654,1.14479948,66547.0,66546.0,0.013]
[1718668281239,1.44533848,66547.0,66546.0,0.05045974]
[1718668281416,1.14479948,66547.0,66546.0,0.013]
[1718668281775,1.14479948,66547.0,66546.0,0.05045974]
[1718668282205,1.14479948,66547.0,66546.0,0.013]
[1718668282409,1.14479948,66547.0,66546.0,0.05045974]
[1718668284015,1.44533848,66547.0,66546.0,0.05045974]
[1718668284573,1.14479948,66547.0,66546.0,0.05045974]
[1718668285402,1.44533848,66547.0,66546.0,0.05045974]
[1718668285835,1.44533848,66547.0,66546.0,0.013]
[1718668286042,1.44533848,66547.0,66546.0,0.05045974]
[1718668287025,1.44533848,66547.0,66546.0,0.013]
[1718668288415,1.44533848,66547.0,66546.0,0.05045974]
[1718668289442,1.44533848,66547.0,66546.0,0.013]
[1718668289946,1.50182404,66547.0,66546.0,0.013]
[1718668290158,2.12819946,66547.0,66546.0,0.013]
[1718668290383,2.24880537,66547.0,66546.0,0.013]
[1718668290912,2.24780537,66547.0,66546.0,0.006]
[1718668291141,1.051967,66542.0,66541.0,0.000935]
[1718668291349,1.46711419,66542.0,66541.0,0.000935]
[1718668291750,1.58611419,66542.0,66541.0,0.000935]
[1718668291954,1.67566176,66542.0,66541.0,0.000935]
[1718668292197,1.64222938,66542.0,66541.0,0.000935]
[1718668292404,1.69283159,66542.0,66541.0,0.000935]
[1718668293152,1.60328402,66542.0,66541.0,0.000935]
[1718668294277,1.67617666,66542.0,66541.0,0.000935]
[1718668294521,1.97673866,66542.0,66541.0,0.000935]
[1718668294788,1.97573866,66542.0,66541.0,0.000935]
[1718668294971,1.69483159,66542.0,66541.0,0.000935]
[1718668295355,1.60328402,66542.0,66541.0,0.000935]
[1718668295564,1.60428402,66542.0,66541.0,0.000935]
[1718668295758,1.90784602,66542.0,66541.0,0.000935]
[1718668296136,1.90684602,66542.0,66541.0,0.000935]
[1718668296338,1.60928402,66542.0,66541.0,0.000935]
[1718668296884,1.39916921,66542.0,66541.0,0.000935]
[1718668297132,1.63700235,66542.0,66541.0,0.000935]
[1718668297306,3.39649902,66542.0,66541.0,0.000935]
[1718668297514,2.34660146,66542.0,66541.0,0.000935]
[1718668298328,2.29593702,66542.0,66541.0,0.000935]
[1718668298518,2.34677356,66542.0,66541.0,0.000935]
[1718668300222,3.06677356,66542.0,66541.0,0.000935]
[1718668301587,3.06710015,66542.0,66541.0,0.000935]
[1718668302575,3.17878716,66542.0,66541.0,0.000935]
[1718668303333,2.15822516,66542.0,66541.0,0.000935]
[1718668303532,2.43641684,66542.0,66541.0,0.000935]
[1718668303739,2.34710015,66542.0,66541.0,0.000935]
[1718668304341,1.77480927,66542.0,66541.0,0.000935]
[1718668304544,1.78570182,66542.0,66541.0,0.000935]
[1718668304787,1.90350182,66542.0,66541.0,0.000935]
[1718668305148,1.83190182,66542.0,66541.0,0.000935]
[1718668305350,1.97047626,66542.0,66541.0,0.000935]
[1718668305563,1.89887626,66542.0,66541.0,0.000935]
[1718668305765,1.97047626,66542.0,66541.0,0.000935]
[1718668307343,2.12320514,66542.0,66541.0,0.000935]
[1718668307562,2.72432914,66542.0,66541.0,0.000935]
[1718668307780,2.4567927,66542.0,66541.0,0.000935]
[1718668307980,2.3567927,66542.0,66541.0,0.000935]
[1718668308341,3.3273547,66542.0,66541.0,0.000935]
[1718668308540,3.0267927,66542.0,66541.0,0.000935]
[1718668308748,2.62204552,66542.0,66541.0,0.000935]
[1718668308945,3.29718604,66542.0,66541.0,0.000935]
[1718668309172,2.40193322,66542.0,66541.0,0.000935]
[1718668309372,2.49121695,66542.0,66541.0,0.000935]
[1718668310010,3.13375721,66542.0,66541.0,0.000935]
[1718668310337,3.54952278,66542.0,66541.0,0.000935]
[1718668310885,3.46023905,66542.0,66541.0,0.000935]
[1718668311094,3.40907592,66542.0,66541.0,0.000935]
[1718668311295,3.29653566,66542.0,66541.0,0.000935]
[1718668311492,3.25139514,66542.0,66541.0,0.000935]
[1718668311825,3.35139514,66542.0,66541.0,0.000935]
[1718668313232,3.42651999,66542.0,66541.0,0.000935]
[1718668313852,3.56846976,66542.0,66541.0,0.000935]
[1718668314716,3.40407111,66542.0,66541.0,0.000935]
[1718668315281,3.57894071,66542.0,66541.0,0.000935]
[1718668316265,3.61640071,66542.0,66541.0,0.000935]
[1718668316470,3.66154123,66542.0,66541.0,0.000935]
[1718668317054,3.66154123,66542.0,66522.0,0.1027]
[1718668317055,0.300634,66526.0,66522.0,0.1027]
[1718668317268,0.52257,66523.0,66522.0,0.1027]
[1718668317442,1.76234414,66523.0,66522.0,0.1027]
[1718668317599,1.46169714,66523.0,66522.0,0.1027]
[1718668317796,1.51421127,66523.0,66522.0,0.1027]
[1718668319012,1.46169714,66523.0,66522.0,0.1027]
[1718668319220,1.51424755,66523.0,66522.0,0.1027]
[1718668319736,0.86040314,66523.0,66522.0,0.1808]
[1718668320042,0.62257,66523.0,66522.0,0.1919]
[1718668320181,0.62257,66523.0,66522.0,0.1939]
[1718668320547,0.1716,66523.0,66522.0,0.23435974]
[1718668320683,0.0716,66523.0,66522.0,0.25460847]
[1718668321068,0.52257,66523.0,66522.0,0.25460847]
[1718668321272,0.62257,66523.0,66522.0,0.25460847]
[1718668321622,0.62257,66523.0,66522.0,0.23135974]
[1718668321770,0.62257,66523.0,66522.0,0.22935974]
[1718668322126,0.62257,66523.0,66522.0,0.25060847]
[1718668322304,0.62257,66523.0,66522.0,0.25154347]
[1718668322490,0.62257,66523.0,66522.0,0.25054347]
[1718668322688,0.62257,66523.0,66522.0,0.25454347]
[1718668323083,0.1,66523.0,66522.0,0.25554347]
[1718668323287,0.1,66524.0,66523.0,0.23415974]
[1718668323515,0.1,66524.0,66523.0,0.25440664]
[1718668323721,0.150319,66525.0,66524.0,0.04855974]
[1718668323897,0.250319,66525.0,66524.0,0.2544048]
[1718668324244,0.34205895,66525.0,66524.0,0.2544048]
[1718668324678,0.41365895,66525.0,66524.0,0.2544048]
[1718668326040,0.41465895,66525.0,66524.0,0.2604048]
[1718668327112,0.56497795,66525.0,66524.0,0.2604048]
[1718668327284,0.41465895,66525.0,66524.0,0.2604048]
[1718668327852,0.24305895,66525.0,66524.0,0.5610478]
[1718668328051,0.001,66525.0,66524.0,0.4107258]
[1718668328454,0.001,66525.0,66524.0,0.4207258]
[1718668328659,0.001,66525.0,66524.0,1.0220118]
[1718668329060,0.001,66525.0,66524.0,0.2604048]
[1718668329483,0.001,66525.0,66524.0,0.4207258]
[1718668329850,0.002,66525.0,66524.0,0.4267258]
[1718668330041,0.002,66525.0,66524.0,0.4167258]
[1718668330221,0.002,66525.0,66524.0,0.2664048]
[1718668330802,0.0736,66525.0,66524.0,0.2664048]
[1718668331012,1.10873052,66525.0,66524.0,0.03224506]
[1718668331207,1.46371769,66525.0,66524.0,0.012]
[1718668331564,1.20873052,66525.0,66524.0,0.012]
[1718668331733,1.26174512,66525.0,66524.0,0.012]
[1718668333726,1.56238312,66525.0,66524.0,0.012]
[1718668334131,1.60713842,66525.0,66524.0,0.012]
[1718668334783,1.23490042,66525.0,66524.0,0.012]
[1718668335025,1.26174512,66525.0,66524.0,0.012]
[1718668335229,1.60713842,66525.0,66524.0,0.012]
[1718668336237,1.56238312,66525.0,66524.0,0.012]
[1718668336815,2.11112261,66525.0,66524.0,0.012]
[1718668337014,2.021612,66525.0,66524.0,0.012]
[1718668338402,2.03965781,66525.0,66524.0,0.012]
[1718668338809,2.03865781,66525.0,66524.0,0.006]
[1718668339220,2.04165781,66525.0,66524.0,0.006]
[1718668339845,2.04380935,66525.0,66524.0,0.006]
[1718668340090,1.052264,66523.0,66522.0,0.000935]
[1718668340242,1.49096566,66523.0,66522.0,0.000935]
[1718668340441,1.49096567,66523.0,66522.0,0.000935]
[1718668340711,2.03366867,66523.0,66522.0,0.000935]
[1718668340828,1.99763067,66523.0,66522.0,0.000935]
[1718668341236,2.10659924,66523.0,66522.0,0.000935]
[1718668341554,2.12563067,66523.0,66522.0,0.000935]
[1718668341761,2.73171911,66523.0,66522.0,0.000935]
[1718668342349,2.73271911,66523.0,66522.0,0.000935]
[1718668342576,2.58000655,66523.0,66522.0,0.000935]
[1718668342991,2.07334155,66523.0,66522.0,0.000935]
[1718668343193,2.93334155,66523.0,66522.0,0.000935]
[1718668343393,6.19777555,66523.0,66522.0,0.000935]
[1718668343619,6.52046841,66523.0,66522.0,0.000935]
[1718668343813,6.23275941,66523.0,66522.0,0.000935]
[1718668344613,7.03275941,66523.0,66522.0,0.000935]
[1718668344814,5.91391011,66523.0,66522.0,0.000935]
[1718668345065,6.05182547,66523.0,66522.0,0.000935]
[1718668345276,6.11793047,66523.0,66522.0,0.000935]
[1718668346337,5.80445811,66523.0,66522.0,0.000935]
[1718668346824,5.80645811,66523.0,66522.0,0.000935]
[1718668347763,5.80545811,66523.0,66522.0,0.000935]
[1718668348150,5.47254855,66523.0,66522.0,0.000935]
[1718668348312,1.75613845,66523.0,66522.0,0.000935]
[1718668348518,1.71590959,66523.0,66522.0,0.000935]
[1718668348717,2.34520859,66523.0,66522.0,0.000935]
[1718668350544,2.41230886,66523.0,66522.0,0.000935]
[1718668350954,2.34520859,66523.0,66522.0,0.000935]
[1718668353338,2.19997159,66523.0,66522.0,0.000935]
[1718668353755,1.87447959,66523.0,66522.0,0.000935]
[1718668353965,1.77773359,66523.0,66522.0,0.000935]
[1718668355004,2.07838059,66523.0,66522.0,0.000935]
[1718668355430,1.77773359,66523.0,66522.0,0.000935]
[1718668356844,1.84483109,66523.0,66522.0,0.000935]
[1718668358755,2.20567809,66523.0,66522.0,0.000935]
[1718668358965,1.90503109,66523.0,66522.0,0.000935]
[1718668359160,1.53728659,66523.0,66522.0,0.000935]
[1718668359412,1.83793359,66523.0,66522.0,0.000935]
[1718668359762,1.90503109,66523.0,66522.0,0.000935]
[1718668359970,1.83793359,66523.0,66522.0,0.000935]
[1718668361102,1.64595159,66523.0,66522.0,0.000935]
[1718668361293,1.57435159,66523.0,66522.0,0.000935]
[1718668361495,1.57435159,66523.0,66522.0,0.012035]
[1718668361496,0.49951671,66523.0,66522.0,0.012035]
[1718668361688,0.72143971,66523.0,66522.0,0.183735]
[1718668361999,1.32273371,66523.0,66522.0,0.183735]
[1718668362200,1.26253371,66523.0,66522.0,0.183735]
[1718668362409,1.56318071,66523.0,66522.0,0.104635]
[1718668362627,1.56318071,66523.0,66522.0,0.000935]
[1718668363455,1.19093371,66523.0,66522.0,0.000935]
[1718668363696,1.26253371,66523.0,66522.0,0.000935]
[1718668366539,1.30727318,66523.0,66522.0,0.000935]
[1718668366960,1.26253371,66523.0,66522.0,0.000935]
[1718668367554,1.69082744,66523.0,66522.0,0.000935]
[1718668367913,1.30727944,66523.0,66522.0,0.000935]
[1718668371490,1.30569327,66523.0,66522.0,0.000935]
[1718668372074,1.26094754,66523.0,66522.0,0.000935]
[1718668373080,0.43773054,66523.0,66522.0,0.199035]
[1718668373324,0.65985655,66523.0,66522.0,0.199035]
[1718668373522,0.65985655,66523.0,66522.0,0.22208026]
[1718668373720,0.65985655,66523.0,66522.0,0.199035]
[1718668374319,0.96050355,66523.0,66522.0,0.199035]
[1718668374925,0.96050355,66523.0,66522.0,0.187935]
[1718668375279,1.26115055,66523.0,66522.0,0.187935]
[1718668375905,1.21075252,66523.0,66522.0,0.187935]
[1718668376310,1.26124057,66523.0,66522.0,0.187935]
[1718668376710,1.21075252,66523.0,66522.0,0.187935]
[1718668377218,1.26131786,66523.0,66522.0,0.187935]
[1718668377901,1.51139952,66523.0,66522.0,0.102435]
[1718668378131,1.21075252,66523.0,66522.0,0.102435]
[1718668379087,1.26131778,66523.0,66522.0,0.102435]
[1718668379963,1.25731778,66523.0,66522.0,0.102435]
[1718668380234,1.55796478,66523.0,66522.0,0.102435]
[1718668380422,1.56496478,66523.0,66522.0,0.103435]
[1718668380827,1.55796478,66523.0,66522.0,0.102435]
[1718668381086,1.56396478,66523.0,66522.0,0.103435]
[1718668381360,1.57196478,66523.0,66522.0,0.104435]
[1718668382185,1.50036478,66523.0,66522.0,0.104435]
[1718668382392,1.57196478,66523.0,66522.0,0.104435]
[1718668382892,1.56396478,66523.0,66522.0,0.103435]
[1718668383101,1.57796478,66523.0,66522.0,0.103435]
[1718668383539,1.56396478,66523.0,66522.0,0.103435]
[1718668383921,1.66260481,66523.0,66522.0,0.103435]
[1718668384124,1.36195781,66523.0,66522.0,0.103435]
[1718668384329,0.98371081,66523.0,66522.0,0.113535]
[1718668384543,1.00474555,66523.0,66522.0,0.192635]
[1718668384746,1.30539255,66523.0,66522.0,0.192635]
[1718668384905,1.00474555,66523.0,66522.0,0.192635]
[1718668386032,1.01274555,66523.0,66522.0,0.193635]
[1718668386362,1.21575252,66523.0,66522.0,0.192635]
[1718668386898,0.63157,66523.0,66522.0,0.192635]
[1718668387098,0.8345873,66523.0,66522.0,0.192635]
[1718668388194,0.8435873,66523.0,66522.0,0.193635]
[1718668388595,1.1442343,66523.0,66522.0,0.193635]
[1718668388796,0.8435873,66523.0,66522.0,0.193635]
[1718668389261,0.8345873,66523.0,66522.0,0.193635]
[1718668389849,0.8180873,66523.0,66522.0,0.192635]
[1718668390016,1.1267343,66523.0,66522.0,0.181535]
[1718668390211,1.1347343,66523.0,66522.0,0.182535]
[1718668390671,0.8340873,66523.0,66522.0,0.182535]
[1718668390845,1.1347343,66523.0,66522.0,0.103435]
[1718668391048,1.20194656,66523.0,66522.0,0.103435]
[1718668391716,1.22700329,66523.0,66522.0,0.103435]
[1718668392238,1.15979103,66523.0,66522.0,0.103435]
[1718668394150,1.24961658,66523.0,66522.0,0.103435]
[1718668395052,1.15998799,66523.0,66522.0,0.103435]
[1718668395526,1.24961658,66523.0,66522.0,0.103435]
[1718668397425,1.15998799,66523.0,66522.0,0.103435]
[1718668397717,0.33677099,66523.0,66522.0,0.103435]
[1718668397937,0.48709399,66523.0,66522.0,0.114535]
[1718668398140,0.55869399,66523.0,66522.0,0.114535]
[1718668398267,1.20480811,66523.0,66522.0,0.13758288]
[1718668398473,1.15998799,66523.0,66522.0,0.114535]
[1718668401438,0.55869399,66523.0,66522.0,0.114535]
[1718668402800,0.85934099,66523.0,66522.0,0.114535]
[1718668405899,0.8340873,66523.0,66522.0,0.114535]
[1718668406110,0.86324083,66523.0,66522.0,0.114535]
[1718668407279,0.8340873,66523.0,66522.0,0.114535]
[1718668407476,0.86326411,66523.0,66522.0,0.114535]
[1718668407739,0.34069411,66523.0,66522.0,0.114535]
[1718668407913,0.3115173,66523.0,66522.0,0.114535]
[1718668408139,0.3831173,66523.0,66522.0,0.114535]
[1718668408310,0.3831173,66523.0,66522.0,0.13758288]
[1718668408955,0.3751173,66523.0,66522.0,0.13758288]
[1718668409195,0.3701173,66523.0,66522.0,0.113535]
[1718668409646,0.3701173,66523.0,66522.0,0.102435]
[1718668409647,0.59540058,66523.0,66522.0,0.102435]
[1718668409855,0.59540058,66523.0,66522.0,0.113535]
[1718668410673,0.59840058,66523.0,66522.0,0.113535]
[1718668413083,0.44807758,66523.0,66522.0,0.113535]
[1718668413276,0.40324318,66523.0,66522.0,0.113535]
[1718668413767,0.40324318,66523.0,66522.0,0.22692546]
[1718668413982,0.40324318,66523.0,66522.0,0.30572546]
[1718668413983,0.3731173,66523.0,66522.0,0.30572546]
[1718668414194,0.3731173,66523.0,66522.0,0.32877278]
[1718668417398,0.3731173,66523.0,66522.0,0.25284206]
[1718668418038,0.3739673,66523.0,66522.0,0.25284206]
[1718668420763,0.3739673,66523.0,66522.0,0.22979474]
[1718668420982,0.3739673,66523.0,66522.0,0.25284206]
[1718668421766,0.3023673,66523.0,66522.0,0.25284206]
[1718668421971,0.3739673,66523.0,66522.0,0.25284206]
[1718668422098,0.3739673,66523.0,66522.0,0.22979474]
[1718668424669,0.3739673,66523.0,66522.0,0.25283741]
[1718668428572,0.5242903,66523.0,66522.0,0.25283741]
[1718668429000,0.5242903,66523.0,66522.0,0.22979474]
[1718668430287,0.3739673,66523.0,66522.0,0.22979474]
[1718668430867,0.3739673,66523.0,66522.0,0.25283741]
[1718668434796,0.12469398,66523.0,66522.0,0.25283741]
[1718668435253,0.07845,66523.0,66522.0,0.25283741]
[1718668436640,0.228773,66523.0,66522.0,0.16293741]
[1718668436840,0.328773,66523.0,66522.0,0.16293741]
[1718668437044,0.328773,66523.0,66522.0,0.15099474]
[1718668440487,0.62942,66523.0,66522.0,0.15099474]
[1718668441129,0.66067774,66523.0,66522.0,0.15099474]
[1718668441535,0.66068036,66523.0,66522.0,0.15099474]
[1718668442108,0.65986999,66523.0,66522.0,0.13989474]
[1718668442521,0.65986999,66523.0,66522.0,0.15099474]
[1718668443048,0.7046994,66523.0,66522.0,0.15099474]
[1718668444066,0.7046994,66523.0,66522.0,0.13989474]
[1718668444549,1.3059934,66523.0,66522.0,0.03839474]
[1718668444757,1.0053464,66523.0,66522.0,0.03839474]
[1718668447269,1.00374242,66523.0,66522.0,0.03839474]
[1718668447491,1.00374242,66523.0,66522.0,0.04949474]
[1718668448047,1.00374242,66523.0,66522.0,0.03839474]
[1718668448936,1.00374242,66523.0,66522.0,0.04949474]
[1718668449361,0.95889503,66523.0,66522.0,0.03839474]
[1718668450388,0.95889503,66523.0,66522.0,0.04949474]
[1718668450591,0.88729503,66523.0,66522.0,0.04949474]
[1718668450804,0.95889503,66523.0,66522.0,0.04199474]
[1718668451019,0.95889503,66523.0,66522.0,0.13989474]
[1718668451211,1.02616612,66523.0,66522.0,0.13989474]
[1718668451429,1.02618234,66523.0,66522.0,0.14082974]
[1718668452071,1.02618154,66523.0,66522.0,0.14082974]
[1718668452320,0.95458154,66523.0,66522.0,0.14082974]
[1718668452525,0.72553454,66523.0,66522.0,0.14082974]
[1718668453144,1.02618154,66523.0,66522.0,0.22252974]
[1718668453730,1.02681586,66523.0,66522.0,0.22252974]
[1718668453933,0.72616886,66523.0,66522.0,0.22252974]
[1718668457570,0.65895106,66523.0,66522.0,0.22252974]
[1718668457775,0.72623564,66523.0,66522.0,0.22252974]
[1718668459861,0.72623575,66523.0,66522.0,0.22252974]
[1718668461065,0.72648503,66523.0,66522.0,0.22252974]
[1718668461469,0.20391503,66523.0,66522.0,0.22252974]
[1718668461682,0.20822313,66523.0,66522.0,0.22252974]
[1718668461881,0.17845,66523.0,66522.0,0.24558305]
[1718668462362,0.52942,66523.0,66522.0,0.23448305]
[1718668462570,0.62942,66523.0,66522.0,0.22252974]